{"text_format":"1","workbook":"xlsx","n_sheets":15,"sheets":["Damer Elite","Herrer Elite","Herrer A","Herrer Veteran","Herrer B","Damer A","H WC","H COC","H FIS cup","Herrer C","Herrer D","D WC","D COC","D FIS-cup","Ark1"],"not_rendered":{"charts":0,"images":0,"macros":0,"external_links":0,"defined_names":0,"comments":0,"pivot_tables":0},"unopened":[],"bounds":{"document_bytes":16777216,"sheet_cells":100000,"rows_first":2000,"rows_last":500,"rows_between":2000,"halvings":0,"cell_chars":16384,"cell_head_chars":4096},"cells_cut":0,"cells_raw":0,"read":"whole","date_system":"1900"}

{"sheet":"Damer Elite","index":0,"n_rows":29,"n_cols":12,"rows_kept":29,"cut":false,"hidden":false,"merged":[]}
["Konica Minolta NC DAMER ELITE "]
[]
["Navn","F.år","Klubb","Team","Sum","Vikersund 27.11","Midstua 07.01","Midstua 08.01","Bjørklibakken 14.01","Bjørklibakken 15.01","Holmenkollen 11.02","Holmenkollen 12.02"]
["Ingebjørg Saglien Bråten",1999,"Etnedal Skilag","NTG",{"$f":"SUM(F4:Y4)","v":510},50,80,80,50,50,100,100]
["Thea Sofie Kleven",2000,"Gjerpenkollen","Flying Team Vikersund",420,80,100,100,80,60]
["Hanna Midtsundstad",1999,"Vaaleer IF","NTG",270,60,60,60,45,45]
["Anna O Strøm",1998,"Alta IF","Kollenhopp",240,100,null,null,60,80]
["Tonje Bakke",1998,"Elverum Hopp","NTG ",200,null,null,null,100,100]
["Astrid Louise Baarset",2000,"Botne SK","NTG",158,null,50,50,29,29]
["Emilie Serina Røstad",2000,"Skogn IL","Trønderhopp",80,null,null,null,40,40]
["Eva Elise Johansen Amble",1999,"Ullensaker Skiklubb","NTG",68,null,null,null,36,32]
["Pernille Kvernmo",2000,"Steinkjer Skiklubb","Trønderhopp",68,null,null,null,32,36]
["Anikken Mork",1991,"Ready","Kollenhopp",0]
["Silje Opseth",1999,"Holeværingen IL","NTG",0]
["Karoline Andrea Røstad",1995,"Skogn IL","Trønderhopp",0]
["Line Jahr",1984,"Vikersund IF","Lillehammerhopp",0]
["Maren Lundby",1994,"Kolbukameratene","Lillehammerhopp",0]
["Thea Minyan Bjørseth",2003,"Lensbygda sp.klubb",null,0]
["Karoline Bjerke Skatvedt",2000,"Trøgstad Skiklubb"," ",0]
["Maria Beisvåg",1998,"IL Jardar","Kollenhopp",0]
["Gyda Westvold Hansen",2002,"Nansen IL","Hedmarkhopp",0]
["Thea Øihaugen",2001,"Gausdal Skilag",null,0]
["Mari Leinan Lund",1999,"Tolga IL","Hedmarkhopp",0]
["Eirin Kvandal",2001,"Mosjøen IL",null,0]
["Rebecca Eggen",1999,"Røykenhopp","Flying Team Vikersund",0]
["Julie Melø",1999,"Namdalseid IL","Trønderhopp",0]
["Ingrid Eggen",1999,"Nansen IL","Hedmarkhopp",0]
["Madeleine Kvam Mathisen",1999,"Holeværingen IL",null,0]
["Marte Leinan Lund",2001,"Tolga IL","Hedmarkhopp",0]

{"sheet":"Herrer Elite","index":1,"n_rows":48,"n_cols":22,"rows_kept":48,"cut":false,"hidden":false,"merged":[]}
["Konica Minolta NC  HERRER Elite "]
["Navn","F.år","Klubb","Team","Sum","Vikersund 27.11","Midstua 07.01","Midstua 08.01","Bjørklibakken 14.01","Bjørklibakken 15.01","Granåsen 21.01","Granåsen 25.01","Lysgårdsbakken 28.01","Lysgårdsbakken 29.01","Renabakken 04.02","Renabakken 05.02","Holmenkollen 11.02","Holmenkollen 12.02","Huka 16.2","huka 17.02","Notodden 18.02","Notodden 19.02."]
["Espen Jacobsen",1998,"Orkdal IL","Trønderhopp",{"$f":"SUM(F3:W3)","v":597},null,24,32,45,36,40,null,45,100,45,32,50,24,50,32,24,18]
["Oliver Dahl",1997,"Byåsen IL","Trønderhopp",571,null,null,null,20,16,40,15,80,40,50,29,22,18,100,80,32,29]
["Sondre Ringen",1996,"Bækkelaget Skiklubb","Kollenhopp",547,24,32,40,36,60,18,null,24,36,24,24,29,40,null,null,80,80]
["Jonas Sloth Sandell",1995,"Tromsø Skiklub","Trønderhopp",538,null,80,80,null,null,80,22,100,60,36,80]
["Marius Lindvik",1998,"Rælingen Skiklubb","Kollenhopp",527,29,100,100,null,null,45,18,null,null,null,null,45,45,null,null,100,45]
["Erik Johannesen",1999,"Botne SK","Flying Team Vikersund",503,null,null,null,80,80,24,5,null,null,null,null,26,32,80,100,40,36]
["Andreas Varsi Breivik",1997,"Tromsø Skiklub","Trønderhopp",500,null,null,null,40,29,26,9,60,80,26,22,36,29,45,50,22,26]
["Jesper Ødegaard",1998,"Gausdal Skilag","NTG",476,22,40,26,100,100,60,11,null,null,null,null,15,26,null,null,26,50]
["Robin Pederen",1996,"Stålkameratne IL","Trønderhopp",434,32,60,50,null,null,50,32,null,null,40,40,80,50]
["Kenneh Henningsmo Fredheim",1997,"Nansen IL","Trønderhopp",421,16,29,36,26,24,32,10,40,32,null,null,20,80,null,36,16,24]
["Fredrik Bjerkengen",1988,"Kolbukameratene","Lillehammerhopp",398,80,null,null,50,22,null,16,null,null,60,50,null,null,null,null,60,60]
["Joacim Ødegård Bjøreng",1995,"Røykenhopp","Flyingteam Vikersund",316,null,null,null,null,null,null,26,null,null,80,60,null,null,null,null,50,100]
["Andreas Granerud Buskum",1996,"Lensbygda Sp.klubb","Lillehammerhopp",311,null,null,null,null,null,null,14,50,50,32,45,60,60]
["Fredrik Eirinsønn Villumstad",1999,"Skimt IL","Kollenhopp",274,null,45,45,null,null,15,8,null,null,null,null,40,36,null,null,45,40]
["Lars Brodshaug Berger",1995,"Eidsvoll Værk SK","Lillehammerhopp",265,45,36,29,null,null,16,null,26,24,22,15,32,20]
["Espen Røe",1993,"Tolga IL","Trønderhopp",248,40,26,null,null,null,29,null,32,26,29,36,16,14]
["Oscar P Westerheim",1996,"Bækkelaget Skiklubb","Kollenhopp",239,null,null,null,null,null,null,4,null,null,14,20,13,null,60,60,36,32]
["Are Sumstad",1996,"Sør-Fron IL","Lillehammerhopp",228,18,null,null,29,32,14,null,36,45,15,18,9,12]
["Ole M S Nedrejord",1996,"Nordlys IL","Lillehammerhopp",225,null,null,null,null,null,null,2,16,20,18,14,10,15,36,45,29,20]
["Halvor Egner Granerud",1996,"Asker SK","Kollenhopp",220,null,null,null,null,null,null,20,null,null,100,100]
["Mats Bjerke Myhren",1997,"Søre Ål IL","Trønderhopp",212,null,null,60,null,null,100,12,null,null,null,null,24,16]
["Jarl Magnus Riiber",1997,"Heming IL","Kollenhopp",200,null,null,null,null,null,null,null,null,null,null,null,100,100]
["Matias Braathen",1996,"Øvrevoll Hosle IL","Kollenhopp",182,null,null,null,22,29,20,7,18,null,null,26,14,11,null,null,20,15]
["Chrisian Ingebrigtsen",1994,"Byåsen Skiklub","Trønderhopp",168,20,22,24,null,40,13,3,22,null,12,12]
["Oscar Alexander Hafslund",1997,"Nordbygda/Løten Ski","Lillehammerhopp",158,null,null,null,18,20,22,null,29,29,null,null,18,22]
["Robert Johansson",1990,"Søre Ål IL","Lillehammerhopp",145,100,null,null,null,null,null,45]
["Anders Ladehaug",1999,"Nordre Land IL","NTG",120,null,null,null,32,50,null,1,null,null,16,13,8]
["Thomas Aasen Markeng",2000,"Lensbygda Sportsklubb","NTG",116,null,null,null,60,50,null,6]
["Jostein Loe",1994,"Raufoss IL","Lillehammerhopp",106,null,null,null,null,null,null,null,null,null,null,null,null,null,32,40,18,16]
["Daniel Andre Tande",1994,"Kongsberg IF","Flyingteam Vikersund",100,null,null,null,null,null,null,100]
["Jørgen Berg",1997,"Byåsen IL","Trønderhopp",97,null,null,null,null,null,null,null,null,null,null,null,12,10,29,32,14]
["Joakim Aune",1993,"Byåsen IL","Trønderhopp",84,60,null,null,null,null,null,24]
["Johann Andrè Forfang",1995,"Tromsø Skiklub","Trønderhopp",80,null,null,null,null,null,null,80]
["Richard Haukedal",1996,"Bækkelaget SK","Kollenhopp",79,50,null,null,null,null,null,29]
["Tom Hilde",1987,"Asker SK","Kollenhopp",76,26,null,null,null,null,null,50]
["Peder Løseth Skodjereite",1999,"Stordal IL","NTG",66,null,null,null,null,null,null,null,20,22,null,null,11,13]
["Andreas Stjernen",1988,"Sprova","Trønderhopp",60,null,null,null,null,null,null,60]
["Sigurd Nymoen Søberg",1994,"Furnes Skiløperfor.","Lillehammerhopp",49,36,null,null,null,null,null,13]
["Eirik Fystro",1999,"Leira IL","NTG",42,null,null,null,24,18]
["Anders Fannemel",1991,"Hornindal IL","Lillehammerhopp",40,null,null,null,null,null,null,40]
["Espen Alexander Eriksen",null,"Tromsø Skiklub","Trønderhopp",37,null,null,null,null,null,null,null,null,null,null,null,null,null,null,null,15,22]
["Joachim Hauer",1991,"Bækkelaget SK","Kollenhopp",36,null,null,null,null,null,null,36]
["Benjamin Østvold",2001,"Lensbygda Sp.klubb","Kollenhopp",36,null,null,null,null,null,null,null,null,null,20,16]
["Kristoffer Eriksen Sundal",2001,"Koll IL","Kollenhopp",24,null,null,null,null,null,null,null,null,null,13,11]
[null,null,null,null,{"$f":"SUM(F47:W47)","v":0}]
[null,null,null,null,0]

{"sheet":"Herrer A","index":2,"n_rows":50,"n_cols":21,"rows_kept":50,"cut":false,"hidden":false,"merged":[]}
["Konica Minolta NC  HERRER A  ",null,null,null,"Sum","Vikersund 27.11","Midstua 07.01","Midstua 08.01","Bjørklibakken 14.01","Bjørklibakken 15.01","Granåsen 21.01","Lysgårdsbakken 28.01","Lysgårdsbakken 29.01","Renabakken 04.02","Renabakken 05.02","Holmenkollen 11.02","Holmenkollen 12.02","Huka 16.02.","huka 17.02","Notodden 18.02","Notodden 19.02"]
["Rishi Sæther",1997,"Liabygda IL","Lillehammerhopp",{"$f":"SUM(F2:AF2)","v":864},null,20,16,60,100,36,60,60,60,36,40,36,100,60,100,80]
["Jonas Viken",1997,"Steinkjer Skiklubb","Trønderhopp",668,18,36,15,22,40,14,45,50,22,80,60,50,36,50,80,50]
["Kristoffer Eriksen Sundal",2001,"Koll IL","Kollenhopp",586,null,null,null,100,60,60,80,40,null,null,36,100,null,null,60,50]
["Mats Sagbakken",1999,"Furnes Skiløperforening","Hedmarkhopp",544,null,45,22,45,45,22,null,null,29,100,24,45,60,45,36,26]
["Carl Henning Lippestad",1998,"Bækkelaget Skiklubb","Kollenhopp",446,11,15,26,36,26,13,29,18,18,40,45,24,null,null,45,100]
["Jørgen Madsen",1994,"Skimt","Kollenhopp",433,24,16,20,24,50,24,22,15,null,null,29,29,50,80,14,36]
["Benjamin Østvold",2001,"Lensbygda Sp.klubb","Kollenhopp",422,10,7,null,null,null,50,100,100,null,null,50,80,null,null,15,10]
["Anders Sandberg Haare",1999,"Vikersund IF","Flying Team Vikersund",398,12,null,9,80,80,26,null,null,16,13,20,12,29,40,32,29]
["Jostein Loe",1994,"Raufoss IL","Lillehammerhopp",394,40,60,11,26,24,29,null,null,20,24,100,60]
["Oscar P Westerheim",1996,"Bækkelaget Skiklubb","Kollenhopp",368,16,60,29,32,32,45,50,80,null,null,null,24]
["Jørgen Berg",1997,"Byåsen IL","Trønderhopp",314,13,11,14,null,null,40,32,29,100,60,null,null,null,null,null,15]
["Anders Ladehaug",1999,"Nordre Land IL","NTG",301,36,26,36,null,null,32,null,null,null,null,null,40,45,26,null,60]
["Idar Marø",1995,"Alta IF","Kollenhopp",269,14,10,10,16,16,11,18,45,15,20,18,16,15,29,8,8]
["Jarle Eikehaug",1996,"Ørn IF","Trønderhopp",269,null,null,null,null,null,null,null,null,36,45,14,26,26,32,50,40]
["Jonas Bratlien",1999,"Bøverbru IL","NTG",265,null,null,null,null,null,null,40,36,45,32,80,32]
["Jens Gaarder",2000,"Raufoss IL","Kollenhopp",239,null,null,null,null,null,null,36,20,50,50,32,11,null,null,18,22]
["Andreas Varsi Breivik",1997,"Tromsø Skiklub","Trønderhopp",220,20,100,100]
["Matias Braathen",1996,"Øvrevoll Hosle IL","Kollenhopp",214,22,40,40,null,null,null,null,32,80]
["Christian Røste Solberg",1999,"IL Jardar","Kollenhopp",206,null,null,null,50,22,15,null,null,14,15,11,14,16,null,29,20]
["Jo Rømme Mellingsæter",2000,"Orkdal IL","Trønderhopp",177,null,null,null,null,null,20,15,24,24,16,null,null,null,22,24,32]
["Oliver Dahl",1997,"Byåsen IL","Trønderhopp",175,45,80,50]
["Marius Aas Hast",1999,"Mysen IF","Kollenhopp",173,null,null,null,20,20,null,20,22,26,26,10,10,null,null,12,7]
["Bjørnar Kristiansen Malm",1995,"Byåsen IL","Trønderhopp",172,10,12,14,18,18,16,24,12,12,14,null,null,null,15,7]
["Thomas Aasen Markeng",2000,"Lensbygda Sportsklubb","NTG",156,null,24,32,null,null,100]
["Eirik Fystro",1999,"Leira IL","NTG",155,null,null,null,null,null,null,null,null,11,22,13,15,32,20,26,16]
["Knut Jokerud Strand",1996,"Vikersund IF","Flying Team Vikersund",153,null,14,18,40,40,12,16,13]
["Kristian Stensgård",1996,"Søre Ål IL","Lillehammerhopp",146,null,null,null,null,null,18,null,null,13,12,16,8,40,16,10,13]
["Epen Alexander Eriksen",1994,"Tromsø Skiklub","Trønderhopp",146,null,null,null,null,null,null,null,null,null,null,26,20,null,100]
["Ole M S Nedrejord",1996,"Nordlys IL","Lillehammerhopp",130,26,22,24,29,29]
["Peder Skjæret Strømhaug",1998,"Folldal IL","NTG",125,null,null,null,null,null,null,null,null,null,null,22,18,24,36,13,12]
["Oscar Alexander Hafslund",1997,"Nordbygda/Løten Ski","NTG",121,29,32,60]
["Steffen Jeremiassen",1997,"Skimt IL","Kollenhopp",113,null,null,null,null,null,null,null,null,32,29,12,13,null,null,16,11]
["Espen Jacobsen",1998,"Orkdal IL","Trønderhopp",{"$f":"SUM(F34:AF34)","v":112},32,null,null,null,null,null,null,null,null,null,null,null,80]
["Jonas Sloth Sandell",1995,"Tromsø Skiklub","Trønderhopp",100,100]
["Erik Johannesen",1999,"Botne SK","Flying Team Vikersund",98,null,18,80]
["August Elvevold",1996,"Tromsø Skiklub","Trønderhopp",98,null,null,null,null,null,null,26,14,40,18]
["Even Wålen Østerhaug",1999,"Søre Ål IL","NTG",86,null,null,null,null,null,null,null,null,null,null,null,null,20,18,24,24]
["Sølve Jokerud Strand",2000,"Vikersund IF","Flying Team Vikersund",82,null,null,null,null,null,null,null,null,null,null,null,null,20,24,20,18]
["Andreas Granerud Buskum",1996,"Lensbygda Sp.klubb","Lillehammerhopp",80,80]
["Peder Løseth Skodjereite",1998,"Stordal IL","NTG",80,null,null,null,null,null,80]
["Are Sumstad",1996,"Sør-Fron IL","Lillehammerhopp",74,null,29,45]
["Fredrik Eirinsønn Villumstad",1999,"Skimt IL","Kollenhopp",60,60]
["Mats Bjerke Myhren",1997,"Søre Ål IL","Trønderhopp",50,50]
["Stian Andrè Skinnes",1991,"Gjerpenkollen hoppkubb","Lillehammerhopp",50,15,13,12,null,null,10]
["Chrisian Ingebrigtsen",1994,"Byåsen Skiklub","Trønderhopp",40,null,null,null,null,null,null,null,16,null,null,15,9]
["Sverre Aas Myhr",1998,"Søre Ål IL","NTG",37,null,9,8,null,null,null,null,null,null,null,null,null,null,null,11,9]
["Simen Tiller",1995,"Moelven IL",null,26,null,null,null,null,null,null,null,26]
["Lemet Johanas Nystad",1998,"Nordlys IL","NTG",23,8,8,7]
["Christian Inngjerdingen",null,"Øvrevoll Hosle IL","Kollenhopp",14,null,null,null,null,null,null,null,null,null,null,null,null,null,null,null,14]

{"sheet":"Herrer Veteran","index":3,"n_rows":28,"n_cols":19,"rows_kept":28,"cut":false,"hidden":false,"merged":[]}
["Navn","Klubb","Team",null,"Sum","Vikersund 27.11","Midstua 07.01","Midstua 08.01","Lysgårdsbakken 28.01","Lysgårdsbakken 29.01","Renabakken 04.02","Renabakken 05.02","Holmenkollen 11.02","Holmenkollen 12.02","Huka 16.02","Huka 17.02","Notodden 18.02.","Notodden 19.02."]
["Ole Henning Holt","Sannidal",null,1967,{"$f":"SUM(F2:OA2)","v":680},100,null,null,100,100,100,100,80,100]
["David Bienik","Skotfoss T&IF",null,1985,620,60,null,null,null,null,null,null,100,80,100,100,100,null,80]
["Geir Vethe","Kolbukmeratene IL",null,1977,400,80,80,80,80,80]
["Dag Arne Riesto","Pors IF",null,1974,230,null,null,null,null,null,null,null,null,null,60,60,60,null,50]
["Kurt Kristiansen","Trøgstad SK"," ",1984,205,null,60,45,null,null,null,null,50,50]
["Pål Markus Kalleberg","Østre Aker Skiklubb",null,1946,201,null,29,32,null,null,null,null,null,null,null,null,80,null,60]
["Patrick Larsen","Pors IF",null,1982,200,null,100,100]
["Anders Bechmann","Skogn IL"," ",1972,180,null,40,40,null,null,null,null,null,null,null,null,null,null,100]
["Rbin Øverby","Vallset IL"," ",1986,165,null,45,60,null,null,null,null,null,60]
["Ove Fredheim","Hafslo IL",null,1964,136,50,36,50]
["Torry Åge Ringkilen","Skimt IL"," ",1958,113,45,32,36]
["Jan Erik Tellefsen","Pors IF",null,1952,95,null,null,null,null,null,null,null,null,null,45,50]
["Per Espen Andersen","Øyestad IF","Sørlandshopp",1958,80,null,null,null,null,null,null,null,null,null,null,80]
["Ingebrigt Sørbø","Skotfoss T&IF",null,1952,80,null,null,null,null,null,null,null,null,null,80]
["Odgeir Heimdal","Raufoss IL",null,1982,60,null,null,null,null,null,null,null,60]
["Knut Bjerke","Rælingen Skiklubb"," ",1961,50,null,50]
["Pål Håheim","Frolan IL",null,1953,50,null,null,null,null,null,null,null,null,null,50]
["Torbjørn Saksenvik Haugen","Østre Aker Skiklubb",null,1951,26,null,26]
["Dennis Leoard Kavli","Østre Aker Skiklubb",null,1952,24,null,24]
["Ole Andreas Skatvedt","Trøgstad Skiklubb",null,1965,0]
["Arvid Lian","Ivrig IL"," ",1962,0]
["Arne Jens  Jørgensen","Horten Skiklubb"," ",1955,0]
["Stein Arne Hoel","Østre Aker Skiklubb",null,1957,0]
["Arnstein Hausberg Vatle","Trøgstad SK"," ",1962,0]
["Marius Thue","Raumnes & Årnes",null,1982,0]
[null,null,null,null,{"$f":"SUM(F27:OA27)","v":0}]
[null,null,null,null,0]

{"sheet":"Herrer B","index":4,"n_rows":48,"n_cols":21,"rows_kept":48,"cut":false,"hidden":false,"merged":[]}
["Konica Minolta NC Herrer B ",null,null,null,"Sum","Vikersund 27.11","Midtstua 07.01","Midtstua 08.01","Bjørklibakken 14.01","Bjørklibakken 15.01","Granåsen 21.01","Lysgårdsbakken 28.01","Lysgårdsbakken 29.01","Renabakken 04.02","Renabakken 05.02","Holmenkollen 11.02","Holmenkollen 12.02","Huka 16.02","Huka 17.02","Notodden 18.02","Notodden 19.02."]
["Sander Bjørndalen",1999,"Heddal IL","Team Telemark Hopp",{"$f":"SUM(F2:AB2)","v":598},16,26,40,20,32,14,14,22,36,26,36,80,100,40,60,36]
["Epen Alexander Eriksen",1994,"Tromsø Skiklub","Trønderhopp",563,45,32,45,45,26,29,80,29,100,100,null,null,null,null,32]
["Sander Kleven",1998,"Gjerpenkollen Hoppklubb","Flying Team Vikersund",526,11,15,null,22,50,50,26,18,20,24,40,36,50,100,24,40]
["Peder Skjæret Strømhaug",1998,"Folldal IL","NTG",489,32,36,50,50,36,45,50,50,80,60]
["Henrik Haave",2000,"Nordre Land IL","NTG",472,null,null,null,null,null,null,40,36,12,15,80,45,20,24,100,100]
["Sverre Aas Myhr",1998,"Søre Ål IL","NTG",427,60,null,null,36,29,20,16,null,24,20,50,32,80,60]
["Peder Nævestad Pedersen",1995,"Byåsen Skiklub","Trønderhopp",409,50,40,29,18,18,9,36,24,null,null,null,null,40,50,50,45]
["John Andre Langkaas",1999,"Tyristubben IF","Team Telemark Hopp",396,12,22,22,null,null,36,29,32,22,18,26,29,null,80,36,32]
["Martin Sommerstad",1998,"Raufoss IL"," ",389,null,16,14,null,null,18,20,15,40,36,60,60,null,null,50,60]
["August Elvevold",1996,"Tromsø Skiklub","Trønderhopp",315,29,80,26,40,40,100]
["Christian Brenna",1995,"Hakadal IL","Kollenhopp",300,null,null,null,null,null,22,22,13,26,50,45,24,24,32,20,22]
["Even Wålen Østerhaug",1999,"Sør ÅL IL","NTG",284,null,null,null,null,null,null,18,16,60,40,100,50]
["Knut Jokerud Strand",1996,"Vikersund IF","Flying Team Vikersund",283,null,null,null,null,null,null,null,null,50,29,32,26,60,36,26,24]
["Kristian Stensgård",1996,"Søre Ål IL","Lillehammerhopp",262,22,24,36,100,80]
["Sølve Jokerud Strand",2000,"Vikersund IF","Flying Team Vikersund",258,null,null,null,null,null,null,12,40,32,45,29,100]
["Tor Ole Bjerkan",1999,"Steinkjer Skiklubb","Trønderhopp",244,15,15,13,null,null,null,null,null,16,32,null,null,45,29,29,50]
["Jens Gaarder",2000,"Raufoss IL","Kollenhopp",228,13,45,18,32,60,60]
["Pål-Håkon Bjørtomt",2000,"Hurdal IL","NTG",221,18,22,16,26,26,24,32,26,11,null,null,20]
["Jonas Bratlien",1999,"Bøverbru IL","NTG",211,40,29,32,15,15,80]
["Jostein Saglien Bråten",2000,"Etnedal Skilag","NTG",208,null,null,null,null,null,null,null,null,null,null,null,null,32,26,50,100]
["Christian Inngjerdingen",1996,"Øvrevoll Hosle IL","Kollenhopp",202,null,null,null,24,20,null,13,20,45,80]
["Jarle Eikehaug",1996,"Ørn IF","Trønderhopp",200,null,null,null,null,null,40,100,60]
["Kristoffer Eriksen Sundal",2001,"Koll IL","Kollenhopp",186,26,60,100]
["Steffen Jeremiassen",1997,"Skimt IL","Kollenhopp",186,null,null,null,null,null,26,80,80]
["Peder Løseth Skodjereite",1998,"Stordal IL","NTG",180,null,null,null,80,100]
["Jacob Tjåland Randen",1996,"Folldal IL","Lillehammerhopp",177,null,13,15,29,16,10,null,null,10,11,null,null,22,22,15,14]
["Christian Røste Solberg",1999,"IL Jardar","Kollenhopp",176,36,60,80]
["Marius Aas Hast",1999,"Mysen IF","Kollenhopp",170,14,100,24,null,null,32]
["Håvard Svingen Lunnan",1996,"Skatval Skilag","Trønderhopp",168,10,18,20,null,null,12,null,null,15,14,null,null,36,18,12,13]
["Eirik Fystro",1999,"Leira IL","NTG",161,null,null,null,null,null,16,45,100]
["Lemet Johanas Nystad",1998,"Nordlys IL","NTG",156,null,null,null,18,22,13,15,14,14,16,22,22]
["Stian Danielsen",1996,"Alta IF","Trønderhopp",129,20,null,null,null,null,15,24,45,13,12]
["Sander Vossan Eriksen",2000,"Bækkelagets SK","Kollenhopp",121,null,null,null,null,null,null,null,null,18,13,24,40,null,null,null,26]
["Fredrik Gran",1998,"Byåsen IL","Trønderhopp",114,null,null,null,null,null,null,null,null,null,null,null,null,29,45,22,18]
["Jo Rømme Mellingsæter",2000,"Orkdal IL","Trønderhopp",105,null,null,null,60,45]
["Rishi Sæther",1997,"Liabygda IL","Lillehammerhopp",100,100]
["Flemming Dolonen Hagen",null,"Heradsbygda IL","Flying Team Vikersund",100,null,null,null,null,null,null,null,null,null,null,null,null,null,null,80,20]
["Johannes Pettersen",1998,"Tromsø Skiklub","Trønderhopp",91,9,null,null,null,null,11,null,null,null,null,null,null,26,20,14,11]
["Benjamin Østvold",2001,"Lensbygda Sp.klubb","Kollenhopp",88,null,null,60,14,14]
["Mats Sagbakken",1999,"Furnes Skiløperforening","Hedmarkhopp",80,80]
["Peder Isaksen Fossum",1998,"Steinkjer Skiklubb","Trønderhopp",57,null,null,null,null,null,null,null,null,null,null,null,null,18,16,13,10]
["Gaute Laeskogen",2000,"Raufoss IL","Trønderhopp",55,null,null,null,null,null,null,null,null,null,null,null,null,16,15,11,13]
["Alexander Røshol Johnson",1998,"Molde og Omegn IF"," ",51,null,null,null,null,null,null,null,null,29,22]
["Simen Meen Haugeng",null,"Fossum IF","Kollenhopp",33,null,null,null,null,null,null,null,null,null,null,null,null,null,null,18,15]
["Tor Håkon Gisholt",null,"Pors IF","Team Telemark Hopp",32,null,null,null,null,null,null,null,null,null,null,null,null,null,null,16,16]
["Bjørnar Kristiansen Malm",null,"Byåsen IL","Trønderhopp",32,null,null,null,null,null,null,null,null,null,null,null,null,null,null,null,32]
["Jørgen Oliver Strøm",2000,"Alta IF","Kollenhopp",24,24]

{"sheet":"Damer A","index":5,"n_rows":8,"n_cols":8,"rows_kept":8,"cut":false,"hidden":false,"merged":[]}
["Damer A"]
["Navn","F.år","Klubb","Team","Sum","Vikersund 27.11","Midstua 07.01","Midstua 08.01"]
["Emilie Serina Røstad",2000,"Skogn IL","Trønderhopp",{"$f":"SUM(F3:M3)","v":100},100]
["Pernille Kvernmo",2000,"Steinkjer Skiklubb","Trønderhopp",80,80]
["Ingebjørg Saglien Bråten",1999,"Etnedal ","NTG",0]
["Hanna Midtsundstad",1999,"Vaaler IF","NTG",0]
["Karoline Bjerke Skatvedt",2000,"Trøgstad Skiklubb","NTG",0]
["Ingrid Eggen",1999,"IL Nansen","NTG",0]

{"sheet":"H WC","index":6,"n_rows":12,"n_cols":5,"rows_kept":12,"cut":false,"hidden":false,"merged":[]}
["Navn","F.år","Klubb","Team","SUM"]
["Daniel Andre Tande",1994,"Kongsberg IF","Flyingteam Vikersund",1387]
["Johann Andrè Forfang",1995,"Tromsø Skiklub","Trønderhopp",814]
["Anders Fannemel",1991,"Hornindal IL","Lillehammerhopp",750]
["Kenneth Gangnes",1989,"Kolbukameratene","Lillehammerhopp",673]
["Andreas Stjernen",1988,"Sprova","Trønderhopp",629]
["Joachim Hauer",1991,"Bækkelaget SK","Kollenhopp",350]
["Robert Johansson",1990,"Søre Ål IL","Lillehammerhopp",152]
["Halvor Egner Granerud",1996,"Asker SK","Kollenhopp",100]
["Tom Hilde",1987,"Asker SK","Kollenhopp",51]
["Joacim Ødegård Bjøreng",1995,"Røykenhopp","Flyingteam Vikersund",30]
["Phillip Sjøen",1995,"Bækkelaget SK","Kollenhopp",4]

{"sheet":"H COC","index":7,"n_rows":13,"n_cols":5,"rows_kept":13,"cut":false,"hidden":false,"merged":[]}
["Navn","F.år","Klubb","Team","Sum"]
["Joakim Aune",1993,"Byåsen IL","Trønderhopp",461]
["Sigurd Nymoen Søberg",1994,"Furnes Skiløperfor.","Lillehammerhopp",330]
["Johann Andrè Forfang",1995,"Tromsø Skiklub","Trønderhopp",275]
["Halvor Egner Granerud",1996,"Asker SK","Kollenhopp",248]
["Tom Hilde",1987,"Asker SK","Kollenhopp",180]
["Richard Haukedal",1996,"Bækkelaget SK","Kollenhopp",77]
["Fredrik Bjerkengen",1988,"Kolbukameratene","Lillehammerhopp",75]
["Marius Lindvik",1998,"Rælingen Skiklubb","Kollenhopp",68]
["Andreas Granerud Buskum",1996,"Lensbygda Sp.klubb","Lillehammerhopp",59]
["Joachim Hauer",1991,"Bækkelaget SK","Kollenhopp",49]
["Joacim Ødegård Bjøreng",1995,"Røykenhopp","Flyingteam Vikersund",40]
["Jonas Sloth Sandell",1995,"Tromsø Skiklub","Trønderhopp",7]

{"sheet":"H FIS cup","index":8,"n_rows":20,"n_cols":5,"rows_kept":20,"cut":false,"hidden":false,"merged":[]}
["Navn","F.år","Klubb","Team","SUM"]
["Joacim Ødegård Bjøreng",1995,"Røykenhopp","Flyingteam Vikersund",140]
["Marius Lindvik",1998,"Rælingen Skiklubb","Kollenhopp",65]
["Jarl Magnus Riiber",1997,"Heming IL","Kollenhopp",60]
["Espen Røe",1993,"Tolga IL","Trønderhopp",56]
["Lars Brodshaug Berger",1995,"Eidsvoll Værk SK","Lillehammerhopp",37]
["Jesper Ødegaard",1998,"Gausdal Skilag","NTG",34]
["Jonas Sloth Sandell",1995,"Tromsø Skiklub","Trønderhopp",26]
["Kenneth Henningsmo Fredheim",1997,"Nansen IL","Trønderhopp",19]
["Sondre Ringen",1996,"Bækkelaget Skiklubb","Kollenhopp",17]
["Mats Bjerke Myhren",1997,"Søre Ål IL","NTG",16]
["Fredrik Eirinsønn Villumstad",1999,"Skimt IL","Kollenhopp",15]
["Espen Jacobsen",1998,"Orkdal IL","Trønderhopp",13]
["Robin Pederen",1996,"Stålkameratne IL","Trønderhopp",9]
["Chrisian Ingebrigtsen",1994,"Byåsen Skiklub","Trønderhopp",8]
["Jostein Loe",1994,"Raufoss IL","Lillehammerhopp",5]
["Kristian Stensgård",1996,"Søre Ål IL","Lillehammerhopp",5]
["Andreas Varsi Breivik",1997,"Tromsø Skiklub","Trønderhopp",4]
["Matias Braathen",1996,"Øvrevoll Hosle IL","Kollenhopp",3]
["Are Sumstad",1996,"Sør-Fron IL","Lillehammerhopp",2]

{"sheet":"Herrer C","index":9,"n_rows":62,"n_cols":20,"rows_kept":62,"cut":false,"hidden":false,"merged":[]}
["Herrer C"]
["Navn","F.år","Klubb","Team","Sum","Midstua 07.01","Midstua 08.01","Bjørklibakken 14.01","Bjørklibakken 15.01","Granåsen 21.01","Lysgårdsbakken 28.01","Lysgårdsbakken 29.01","Renabakken 04.02","Renabakken 05.02","Holmenkollen 11.02","Holmenkollen 12.02","Huka","Huka","Not","Not"]
["Sivert Markeset",2000,"Holeværingen IL","Flying Team Vikersund",{"$f":"SUM(F3:AF3)","v":553},15,13,22,20,13,12,16,20,32,50,60,40,80,80,80]
["Edvin Madsen Kirknes",1999,"Steinkjer Skiklubb","Trønderhopp",507,24,26,40,50,18,32,45,50,80,null,null,22,60,45,15]
["Jostein Saglien Bråten",2000,"Etnedal Skilag","NTG",495,20,20,32,32,36,24,36,45,50,100,100]
["Simen Meen Haugeng",2000,"Fossum IL","Kollenhopp",452,16,26,20,29,50,40,26,60,45,60,80]
["Flemming Dolonen Hagen",2000,"Heradsbygda IL","Flying Team Vikersund",423,12,15,12,24,10,18,29,18,20,40,45,80,100]
["Tor Håkon Gisholt",2000,"Pors IF","Team Telemark Hopp",382,18,22,26,40,16,22,7,36,29,22,15,100,29]
["Alexander Larsen",2000,"Botne SK","Flying Team Vikersund",357,9,12,32,16,20,11,8,null,null,32,26,60,45,26,60]
["Sander Vossan Eriksen",2000,"Bækkelagets SK","Kollenhopp",342,40,16,60,60,26,100,40]
["Fredrik Gran",1998,"Byåsen IL","Trønderhopp",311,null,null,20,22,29,50,50,40,100]
["Peder Isaksen Fossum",1998,"Steinkjer Skiklubb","Trønderhopp",299,null,null,36,26,32,45,20,100,40]
["Nicolai Langseth Fredriksen",2000,"Fossum IL","Kollenhopp",286,10,9,5,10,15,10,11,29,24,36,40,24,32,22,9]
["Sebastian Østvold",2002,"Lensbygda Sp.klubb","Kollenhopp",279,null,null,null,null,null,null,null,null,null,29,50,null,null,100,100]
["Håkon Kristoffer Tande ",1999,"Kongsberg IF","Flying Team Vikersund",271,13,10,16,10,7,29,18,32,36,45,32,null,null,7,16]
["Jarle Eikehaug",1996,"Ørn IF","Trønderhopp",255,50,60,100,45]
["Even Wålen Østerhaug",1999,"Sør ÅL IL","NTG",251,45,40,50,36,80]
["Tobias Haugelien",1999,"Ringkollen Skiklubb","Team Telemark Hopp",247,8,7,null,null,5,9,15,26,18,26,22,13,26,32,40]
["Jonatan Hansen Lauvsland",2000,"Øvrebø IL","Team Telemark Hopp",238,14,11,null,null,14,13,13,22,14,20,29,16,22,26,24]
["Gaute Laeskogen",2000,"Raufoss IL","Trønderhopp",224,null,null,13,10,24,15,22,80,60]
["Steffen Jeremiassen",1997,"Skimt IL","Kollenhopp",213,36,32,45,100]
["Christian Brenna",1995,"Hakadal IL","Kollenhopp",211,22,29,80,80]
["Alexander Røshol Johnson",1998,"Molde og Omegn IF"," ",185,null,null,null,null,45,80,60]
["Eirik Fystro",1999,"Leira IL","NTG",180,80,100]
["Tor Ole Bjerkan",1999,"Steinkjer Skiklubb","Trønderhopp",180,null,null,null,null,40,60,80]
["Sindre Åsen",1999,"Oddersjaa SSK","NTG",178,null,null,7,7,6,26,9,null,null,null,null,18,36,40,29]
["Ole Kristian Baarset",2001,"Botne SK","Flying Team Vikersund",168,null,null,null,null,null,null,null,null,null,null,null,32,40,60,36]
["Anders Bredesen Garberg",1997,"Orkdal IL","Trønderhopp",158,null,null,null,null,22,null,null,16,22,null,null,20,20,32,26]
["Børge Hansen Utby",2000,"Tromsø Skiklub","Trønderhopp",156,null,null,11,16,12,14,12,24,null,null,null,29,13,12,13]
["Ole Gudbrand Kihle Gravermoen",1998,"Soknedalen IL","Flying Team Vikersund",154,5,6,6,5,null,null,null,13,null,18,24,11,24,22,20]
["Jonas Jacobsen",2000,"Ringkollen Skiklubb","Flying Team Vikersund",154,2,null,2,1,null,null,null,null,null,14,20,45,12,36,22]
["Christian Inngjerdingen",1996,"Øvrevoll Hosle IL","Kollenhopp",150,100,50]
["Simen Kvarstad",2000,"Byåsen IL","Trønderhopp",150,null,45,null,null,null,5,100]
["Jo Rømme Mellingsæter",2000,"Orkdal IL","Trønderhopp",140,60,80]
["Henrik Haave",2000,"Nordre Land IL","NTG",{"$f":"SUM(F35:AF35)","v":134},29,18,24,3,60]
["Sølve Jokerud Strand",2000,"Vikersund IF","Flying Team Vikersund",132,32,null,null,null,100]
["Vegar Aarum Warhuus",2000,"Røykenhopp","Flying Team Vikersund",132,null,null,1,2,null,null,null,null,null,12,12,36,15,18,36]
["Sigve Evensen",1998,"Moelven IL","NTG",126,11,14,14,18,9,36,24]
["Olav Dvergsdal Prestegård",2001,"Vestre Aker SK","Kollenhopp",122,7,8,8,11,null,null,null,null,null,24,36,null,null,18,10]
["Eirik Olsen",2000,"Tromsø Skiklub","Trønderhopp",110,null,null,15,14,11,8,32,15,15]
["Pål-Håkon Bjørtomt",2000,"Hurdal IL","NTG",106,null,null,null,null,null,null,null,null,26,80]
["Kritian Forseth Karlsen",1998,"Rognan IL","Trønderhopp",105,null,null,4,13,8,null,null,14,16,null,null,12,18,15,5]
["Ola Stenumgaard",1999,"Sør-Fron IL","Trønderhopp",80,null,null,9,6,null,null,null,12,13,null,null,10,9,9,12]
["Simen Jacobsen",2000,"Ringkollen Skiklubb","Flying Team Vikersund",74,3,null,3,4,null,null,null,null,null,13,13,8,8,8,14]
["Ruben Skorstad",2000,"Byåsen IL","Trønderhopp",73,null,null,null,null,null,null,null,null,null,null,null,14,null,14,45]
["Viktor Steen Eriksen",1999,"Bækkelagets SK","Kollenhopp",69,26,36," ",null,null,7]
["Benjamin Pettersen",2000,"Botne SK","Flying Team Vikersund",64,1,1,null,null,null,null,null,null,null,11,14,9,10,10,8]
["Tor Kristian Haug",1991,"Skotfoss T & IF",null,47,null,null,null,null,null,null,null,null,null,null,null,null,16,13,18]
["Anders Pettersen Guhnfeldt",1998,"Gjerpenkollen Hoppklubb","Flying Team Vikersund",38,4,3,null,null,null,null,null,null,null,15,16]
["Erik Pettersen Guhnfeldt",1998,"Gjerpenkollen Hoppklubb","Flying Team Vikersund",38,null,4,null,null,null,null,null,null,null,16,18]
["Isak Solberg",2001,"Botne SK","Flying Team Vikersund",30,null,null,null,null,null,null,null,null,null,null,null,15,15]
["Martin Engen Johansen",2000,"Østre Aker Skiklubb","Kollenhopp",28,null,null,null,null,null,null,null,null,null,10,null,null,null,11,7]
["Martin Wohlen",1997,"Steinkjer Skiklubb","Trønderhopp",22,null,null,10,12]
["Andreas Hoff",1993,"Raufoss IL"," ",20,null,null,null,null,null,20]
["Simon Klingenberg Osnes",2000,"Tromsø Skiklub","Trønderhopp",20,null,null,null,null,null,null,null,null,null,null,null,7,null,7,6]
["Eskil Kveen",2000,"Heradsbygda IL","Flying Team Vikersund",16,null,null,null,null,null,16]
["Jon Fossen Rosenberg",2000,"Nordre Land IL","NTG",16,null,null,null,null,null,6,10]
["Michael Alderin Bergh",null,"Ullensaker Skiklubb",null,16,null,null,null,null,null,null,null,null,null,null,null,null,null,5,11]
["Vegard Tiller",1998,"Moelven IL"," ",14,null,null,null,null,null,null,14]
["Espen Alexander Johansen Amble",2001,"Ullensaker Skiklubb","Kollenhopp",11,6,5]
["Hans Gunnar Eliassen",null,"Stålkameratene IL",null,4,null,null,null,null,4]
["Espen Olsby",1994,"Lensbygda Sp.klubb",null,2,null,2]

{"sheet":"Herrer D","index":10,"n_rows":0,"n_cols":0,"rows_kept":0,"cut":false,"hidden":false,"merged":[]}

{"sheet":"D WC","index":11,"n_rows":3,"n_cols":5,"rows_kept":3,"cut":false,"hidden":false,"merged":[]}
[null,null,null,null,"Sum"]
["Maren Lundby",1994,"Kolbukameratene","Lillehammerhopp",939]
["Anikken Mork",1991,"Ready","Kollenhopp",17]

{"sheet":"D COC","index":12,"n_rows":4,"n_cols":5,"rows_kept":4,"cut":false,"hidden":false,"merged":[]}
["Navn","F.år","Klubb","Team","Sum"]
["Silje Opseth",1999,"Holeværingen IL","NTG",76]
["Anna O Strøm",1998,"Alta IF","Kollenhopp",18]
["Thea Sofie Kleven",2000,"Gjerpenkollen","Flying Team Vikersund",18]

{"sheet":"D FIS-cup","index":13,"n_rows":5,"n_cols":5,"rows_kept":5,"cut":false,"hidden":false,"merged":[]}
["Navn","F.år","Klubb","Team","Sum"]
["Ingebjørg Saglien Bråten",1999,"Etnedal Skilag","NTG",28]
["Astrid Louise Baarset",2000,"Botne SK","NTG",24]
["Mari Leinan Lund",1999,"Tolga IL","Hedmarkhopp",17]
["Thea Øihaugen",2001,"Gausdal Skilag",null,10]

{"sheet":"Ark1","index":14,"n_rows":225,"n_cols":4,"rows_kept":225,"cut":false,"hidden":false,"merged":[]}
["Jonas Sloth Sandell",1995,"Tromsø Skiklub","Trønderhopp"]
["Jørgen Graabak"," ","Byåsen IL","Granåsen Skiteam"]
["Simen Aasen Markeng",2002,"Lensbygda Sp.klubb"]
[]
["Benjamin Østvold",2001,"Lensbygda Sp.klubb","Kollenhopp"]
["Kristoffer Eriksen Sundal",2001,"Koll IL","Kollenhopp"]
["Benjamin Østvold",2001,"Lensbygda Sp.klubb","Kollenhopp"]
["Espen Alexander Johansen Amble",2001,"Ullensaker Skiklubb","Kollenhopp"]
["Olav Dvergsdal Prestegård",2001,"Vestre Aker SK","Kollenhopp"]
["Erik Hovdenak",2001,"Molde og Omegn IF"]
["Jørgen Oliver Strøm",2000,"Alta IF","Kollenhopp"]
["Pål-Håkon Bjørtomt",2000,"Hurdal IL","NTG"]
["Simen Kvarstad",2000,"Byåsen IL","Trønderhopp"]
["Jo Rømme Mellingsæter",2000,"Orkdal IL","Trønderhopp"]
["Nicolai Langseth Fredriksen",2000,"Fossum IL","Kollenhopp"]
["Jens Lurås Oftebro",2000,"IL Jardar","Kollenhopp"]
["Sølve Jokerud Strand",2000,"Vikersund IF","Flying Team Vikersund"]
["Henrik Haave",2000,"Nordre Land IL","NTG"]
["Sander Vossan Eriksen",2000,"Bækkelagets SK","Kollenhopp"]
["Ludvik Braathen",2000,"Øvrevoll Hosle IL","Kollenhopp"]
["Simen Meen Haugeng",2000,"Fossum IL","Kollenhopp"]
["Ruben Skorstad",2000,"Byåsen IL"]
["Simen Jacobsen",2000,"Ringkollen Skiklubb","Flying Team Vikersund"]
["Anders Dyrendahl",2000,"Byåsen IL"]
["Alexander Laren",2000,"Botne SK","Flying Team Vikersund"]
["Thomas Aasen Markeng",2000,"Lensbygda Sportsklubb"]
["Fredrik Eirinsønn Villumstad",1999,"Skimt IL","Kollenhopp"]
["Anders Ladehaug",1999,"Nordre Land IL","NTG"]
["Anders Sandberg Haare",1999,"Vikersund IF","Flying Team Vikersund"]
["Mats Sagbakken",1999,"Furnes Skiløperforening","NTG"]
["Christian Røste Solberg",1999,"IL Jardar","Kollenhopp"]
["Jonas Bratlien",1999,"Bøverbru IL","NTG"]
["Mats Sagbakken",1999,"Furnes Skiløperforening","Hedmarkhopp"]
["Jonas Bratlien",1999,"Bøverbru IL","NTG"]
["Christian Røste Solberg",1999,"IL Jardar","Kollenhopp"]
["Sander Bjørndalen",1999,"Heddal IL","Team Telemark Hopp"]
["Tor Ole Bjerkan",1999,"Steinkjer Skiklubb","Trønderhopp"]
["Marius Aas Hast",1999,"Mysen IF","Kollenhopp"]
["John Andre Langkaas",1999,"Tyristubben IF","Team Telemark Hopp"]
["Viktor Steen Eriksen",1999,"Bækkelagets SK","Kollenhopp"]
["Edvin Madsen Kirknes",1999,"Steinkjer Skiklubb","Trønderhopp"]
["Petter Løset Skodjereite",1999,"Stordal IL","NTG"]
["Eirik Fystro",1999,"Leira IL","NTG"]
["Kasper Moen Flatla",1999,"IL Jardar","Kollenhopp"]
["Even Wålen Østerhaug",1999,"Sør ÅL IL","NTG"]
["Jakob Eiksund Sæthre",1999,"Fossum IL","Kollenhopp"]
["Anders Sandberg Håre",1999,"Vikersund IF","Flying Team Vikersund"]
["Erik Johannesen",1999,"Botne SK","Flying Team Vikersund"]
["Håkon Kristoffer Tande",1999,"Kongsberg IF","Flying Team Vikersund"]
["Anders Ladehaug",1999,"Nordre Land IL"]
["Tobias Haugelien",1999,"Ringkollen Skiklubb","Team Telemark Hopp"]
["Harald Derås Høgden",1999,"Namdalseid IL"]
["Magnus Knutsen",1999,"Furnes Skiløperforening","Hedmarkhopp"]
["Morten Robsahm  Kjølberg",1999,"Asker Skiklubb","Kollenhopp"]
["Michael Alderin Bergh",1999,"Ullensaker Skiklubb","Kollenhopp"]
["Aleksander Skoglund",1999,"Molde og Omegn IF"]
["Erik Johannesen",1999,"Botne SK","Flying Team Vikersund"]
["Fredrik Eirinsønn Villumstad",1999,"Skimt IL","Kollenhopp"]
["Espen Jacobsen",1998,"Orkdal IL","Trønderhopp"]
["Carl Henning Lippestad",1998,"Bækkelaget Skiklubb","Kollenhopp"]
["Lemet Johanas Nystad",1998,"Nordlys IL","NTG"]
["Johannes Pettersen",1998,"Tromsø Skiklub","Trønderhopp"]
["Peder Skjæret Strømhaug",1998,"Folldal IL","NTG"]
["Sander Kleven",1998,"Gjerpenkollen Hoppklubb","Flying Team Vikersund"]
["Martin Sommerstad",1998,"Raufoss IL","Lillehammerhopp"]
["Nikolai Aasberg",1998,"Røykenhopp","Flying Team Vikersund"]
["Sverre Aas Myhr",1998,"Søre Ål IL","NTG"]
["Peder Skjæret Strømhaug",1998,"Folldal IL","NTG"]
["Sander Kleven",1998,"Gjerpenkollen Hoppklubb","Flying Team Vikersund"]
["Johannes Pettersen",1998,"Tromsø Skiklub","Trønderhopp"]
["Einar Lurås Oftebo",1998,"IL Jardar","Kollenhopp"]
["Lemet Johanas Nystad",1998,"Nordlys IL","NTG"]
[]
["Sigve Evensen",1998,"Moelven IL","NTG"]
["Joachim Eriksrød",1998,"Siljan  IL","Team Telemark Hopp"]
["Markus Månum",1998,"Raufoss IL","Flying Team Vikersund"]
["Anders Pettersen Guhnfeldt",1998,"Gjerpenkollen Hoppklubb","Flying Team Vikersund"]
["Ole Gudbrand Kihle Gravermoen",1998,"Soknedalen IL","Flying Team Vikersund"]
["Martin Sommerstad",1998,"Raufoss IL","NTG"]
["Leif Torbjørn Næsvold",1998,"Røykenhopp","Flying Team Vikersund"]
["Erik Pettersen Guhnfeldt",1998,"Gjerpenkollen Hoppklubb","Flying Team Vikersund"]
["Vegard Tiller",1998,"Moelven IL","NTG"]
["Øyvind Straumsheim",1998,"Molde og Omegn IF"]
["Marius Lindvik",1998,"Rælingen Skiklubb","Kollenhopp"]
["Jesper Ødegaard",1998,"Gausdal Skilag","NTG"]
["Espen Jacobsen",1998,"Orkdal IL","Trønderhopp"]
["Carl Henning Lippestad",1998,"Bækkelaget Skiklubb","Kollenhopp"]
["Sverre Aas Myhr",1998,"Søre Ål IL","NTG"]
["Mats Bjerke Myhren",1997,"Søre Ål IL","Trønderhopp"]
["Oliver Dahl",1997,"Byåsen IL","Trønderhopp"]
["Oscar Alexander Hafslund",1997,"Nordbygda/Løten Ski","NTG"]
["Andreas Varsi Breivik",1997,"Tromsø Skiklub","Trønderhopp"]
["Jonas Viken",1997,"Steinkjer Skiklubb","Trønderhopp"]
["Jørgen Berg",1997,"Byåsen IL","Trønderhopp"]
["Rishi Sæther",1997,"Liabygda IL","Lillehammerhopp"]
["Kenneh Henningsmo Fredheim",1997,"Nansen IL","Trønderhopp"]
["Steffen Jeremiassen",1997,"Skimt IL","Kollenhopp"]
["Steffen Jeremiassen",1997,"Skimt IL","Kollenhopp"]
[]
["Andreas Varsi Breivik",1997,"Tromsø Skiklub","Trønderhopp"]
["Håkon Leirvaag",1997,"Botne SK","NTG"]
["Olof Lundgren",1997,"Byåsen IL","Trønderhopp"]
["Kenneth Henningsmo Fredheim",1997,"Nansen IL","Trønderhopp"]
["Jørgen Berg",1997,"Byåsen IL","Trønderhopp"]
["Mats Bjerke Myhren",1997,"Søre Ål IL","NTG"]
["Oliver Dahl",1997,"Byåsen IL","Trønderhopp"]
["Oscar Alexander Hafslund",1997,"Nordbygda/Løten Ski","Lillehammerhopp"]
[]
["Rishi Sæther",1997,"Liabygda IL","NTG"]
["Andreas Granerud Buskum",1996,"Lensbygda Sp.klubb","Lillehammerhopp"]
["Ole M S Nedrejord",1996,"Nordlys IL","Lillehammerhopp"]
["Matias Braathen",1996,"Øvrevoll Hosle IL","Kollenhopp"]
["Oscar P Westerheim",1996,"Bækkelaget Skiklubb","Kollenhopp"]
["Sondre Ringen",1996,"Bækkelaget Skiklubb","Kollenhopp"]
["Kristian Stensgård",1996,"Søre Ål IL","Lillehammerhopp"]
["Jonas Gropen Søgård",1996,"Nordbygda/Løten Ski","Lillehammerhopp"]
["Jakob Tjåland Randen",1996,"Folldal IL","Lillehammerhopp"]
["Bendik Netland Hulløen",1996,"Oddersjaa SSK","Lillehammerhopp"]
["Kjell Andreas Næsvold",1996,"Røykenhopp","Flying Team Vikersund"]
["Robin Pederen",1996,"Stålkameratne IL","Trønderhopp"]
["Christian Inngjerdingen",1996,"Øvrevoll Hosle IL","Kollenhopp"]
["Sondre Vestøl Bråtane",1996,"Songe Skiklubb","Trønderhopp"]
["Stian Danielsen",1996,"Alta IF","Trønderhopp"]
["Jens Fredrik Loe",1996,"Byåsen IL","Trønderhopp"]
["Håvard Svingen Lunnan",1996,"Skatval IL","Trønderhopp"]
["August Elvevold",1996,"Tromsø Skiklub","Trønderhopp"]
["Kristian Stensgård",1996,"Søre Ål IL","Lillehammerhopp"]
["Stian Danielsen",1996,"Alta IF","Trønderhopp"]
["Håvard Svingen Lunnan",1996,"Skatval Skilag","Trønderhopp"]
["Jarle Eikehaug",1996,"Ørn IF","Trønderhopp"]
["Edvart Myrvang Bakke",1996,"Hedalen IL","Flying Team Vikersund"]
["Bendik Netland Hulløen",1996,"Oddersjaa SSK","NTG"]
["Jacob Tjåland Randen",1996,"Folldal IL","NTG"]
["Jens Fredrik Loe",1996,"Byåsen IL","Trønderhopp"]
["Mats Jakob Kvernmo",1996,"Steinkjer Skiklubb","Trønderhopp"]
["Sivert Grande",1996,"Steinkjer Skiklubb","Trønderhopp"]
["Richard Haukedal",1996,"Bækkelaget SK","Kollenhopp"]
["Robin Pederen",1996,"Stålkameratne IL","Trønderhopp"]
["Sondre Ringen",1996,"Bækkelaget Skiklubb","Kollenhopp"]
["Are Sumstad",1996,"Sør-Fron IL","Lillehammerhopp"]
["Matias Braathen",1996,"Øvrevoll Hosle IL","Kollenhopp"]
["Ole Mathis Nedrejord",1996,"Nordlys IL","Lillehammerhopp"]
["Knut Jokerud Strand",1996,"Vikersund IF","Flying Team Vikersund"]
["Halvor Egner Granerud",1996,"Asker SK","Kollenhopp"]
["Jonas Gropen Søgård",1996,"Nordbygda/Løten Ski","Lillehammerhopp"]
["Andreas Granerud Buskum",1996,"Lensbygda Sp.klubb","Lillehammerhopp"]
["Kristian Stensgård",1996,"Søre Ål IL","Lillehammerhopp"]
["Bendik Netland Huløen",1996,"Oddersjå SSK","Lillehammerhopp"]
["Jakob Tjåland Randen",1996,"Folldal IL","NTG"]
["Idar Marø",1995,"Alta IF","Kollenhopp"]
["Bjørnar Kristiansen Malm",1995,"Byåsen IL","Trønderhopp"]
["Peder Nævestad Pedersen",1995,"Byåsen Skiklub","Trønderhopp"]
["Christian Brenna",1995,"Hakadal IL","Kollenhopp"]
["Lars Brodshaug Berger",1995,"Eidsvold Værks Skiklub","Lillehammerhopp"]
["Leif Mariu Hagemoen",1995,"Gausdal Skilag","Lillehammerhopp"]
["Mats Søhagen Berggaard",1995,"Ringkollen Skiklubb","Flying Team Vikersund"]
["Peder Nævestad Pedersen",1995,"Byåsen Skiklub","Trønderhopp"]
["Mats Søhagen Berggaard",1995,"Ringkollen Skiklubb","Flying Team Vikersund"]
["Leif Marius Hagemoen",1995,"Gausdal Skilag","Lillehammerhopp"]
["Bjørnar Kristiansen Malm",1995,"Byåsen IL","Trønderhopp"]
["Lars Brodshaug Berger",1995,"Eidsvoll Værk SK","Lillehammerhopp"]
["Jonas Sloth Sandell",1995,"Tromsø Skiklub","Trønderhopp"]
["Harald Riiber",1995,"Heming IL","Kollenhopp"]
["Joacim Ødegård Bjøreng",1995,"Røykenhopp","Flyingteam Vikersund"]
["Phillip Sjøen",1995,"Bækkelaget SK","Kollenhopp"]
["Idar Marø",1995,"Alta IF","Kollenhopp"]
["Johann Andrè Forfang",1995,"Tromsø Skiklub","Trønderhopp"]
["Peder Nævestad Pedersen",1995,"Byåsen Skiklub","Trønderhopp"]
["Christian Brenna",1995,"Hakadal IL","Kollenhopp"]
["Jostein Loe",1994,"Raufoss IL","Lillehammerhopp"]
["Jørgen Madsen",1994,"Skimt","Kollenhopp"]
["Adrian Livelten",1994,"IL Hjelseth-Fram","Lillehammerhopp"]
["Epen Alexander Eriksen",1994,"Tromsø kiklub","Trønderhopp"]
["Kristian Lian",1994,"Ivrig IL","Lillehammerhopp"]
["Sigurd Nymoen Søberg",1994,"Furnes Skiløperforening","Lillehammerhopp"]
["Alexander Henningsen",1994,"Tromsø Skiklub","Lillehammerhopp"]
["Epen Alexander Eriksen",1994,"Tromsø Skiklub","Trønderhopp"]
["Alexander Henningsen",1994,"Tromsø Skiklub","Lillehammerhopp"]
["Sigurd Nymoen Søberg",1994,"Furnes Skiløperfor.","Lillehammerhopp"]
["Chrisian Ingebrigtsen",1994,"Byåsen Skiklub","Trønderhopp"]
["Jostein Loe",1994,"Raufoss IL","Lillehammerhopp"]
["Daniel Andre Tande",1994,"Kongsberg IF","Flyingteam Vikersund"]
["Jørgen Madsen",1994,"Skimt","Kollenhopp"]
["Kristian Lian",1994,"Ivrig IL","Lillehammerhopp"]
["Alexander Henningsen",1994,"Tromsø Skiklub","Lillehammerhopp"]
["Adrian Livelten",1994,"IL Hjelseth-Fram","Lillehammerhopp"]
["Jonas Langgård",1993,"Hurdal IL"," "]
["Christian Corody",1993,"IL Jardar","Kollenhopp"]
[]
["Jonas Langgård",1993,"Hurdal IL"]
["Bjørn Iver Restad",1993,"Leik IL","Trønderhopp"]
["Haakon Norseng",1993,"Ivrig IL","Flying Team Vikersund"]
["Henrik Fretheim",1993,"Kongsberg IF","Flying Team Vikersund"]
["Joakim Aune",1993,"Byåsen IL","Trønderhopp"]
["Espen Røe",1993,"Tolga IL","Trønderhopp"]
["Sindre Ure Søtvik",1992,"Eldar IL","NTG/LNC"]
["Stian Andrè Skinnes",1991,"Gjerpenkollen hoppkubb","Lillehammerhopp"]
["Jan Fuhre",1991,"Vikersund IF","Trønderhopp"]
["Tor Kristian Haug",1991,"Skotfoss Turn & IF"," "]
["Stian Andrè Skinnes",1991,"Gjerpenkollen hoppkubb","Lillehammerhopp"]
["Joachim Hauer",1991,"Bækkelaget SK","Kollenhopp"]
["Anders Fannemel",1991,"Hornindal IL","Lillehammerhopp"]
["Jan Fuhre",1991,"Vikersund IF","Trønderhopp"]
["Robert Johansson",1990,"Søre Ål IL","Lillehammerhopp"]
["Kenneth Gangnes",1989,"Kolbukameratene","Lillehammerhopp"]
["Fredrik Bjerkengen",1988,"Kolbukameratene","Lillehammerhopp"]
["Tord Markussen Hammer",1988,"Tromsø Skiklub","Trønderhopp"]
["Andreas Stjernen",1988,"Sprova","Trønderhopp"]
["Tom Hilde",1987,"Asker SK","Kollenhopp"]
["Patrick Larsen",1982,"Pors IF","Team Telemark Hopp"]
["Geir Vethe",1977,"Kolbukmeratene IL"," "]
["Ole Henning Holt",1967,"Sannidal IL","Team Telemark Hopp"]
["Ole Andreas Skatvedt",1965,"Trøgstad Skiklubb"," "]
["Thomas Kjelbotn",null,"Bardu IL","Granåsen Skiteam"]
["Espen Dahlhaug Bjørnstad",null,"Byåsen Skiklub","Granåsen Skiteam"]
["Lars Ivar Skårseth",null,"Sør ÅL IL","NTG"]
["Eirik Svartdal Olsen",null,"Tromsø Skiklub","Trønderhopp"]
["Andreas Skoglund",null,"Molde og Omegn IF","Granåsen Skiteam"]
["Børge Hansen Utby",null,"Tromsø Skiklub","Trønderhopp"]
["Sivert Markeset",null,"Holeværingen IL","NTG"]
["Jostein Saglien Bråten",null,"Etnedal Skilag","NTG"]
["Bjørnar Kvaal",null,"Byåsen IL","Granåsen Skiteam"]
["Anders Ladehaug",null,"Nordre Land IL","NTG"]
["Oscar P Westerheim",null,"Bækkelaget Skiklubb","Kollenhopp"]
["Jonas Viken",null,"Steinkjer Skiklubb","Trønderhopp"]